fUST/lending_fUST_20251213
["ID","MTS","AMOUNT","RATE_DAILY","PERIOD"]
[398398574,1765605031865,-401.0,0.00029298,2]
[398398575,1765605031875,-2000.0,0.00029424,3]
[398398576,1765605031884,-1880.03583882,0.00029489,2]
[398398577,1765605031893,-2470.54092053,0.00029533,2]
[398398578,1765605031902,-1289.2,0.0002958,10]
[398398579,1765605031912,-1074.33,0.0002958,10]
[398398580,1765605031921,-23504.21271194,0.0002958,2]
[398398581,1765605031933,-14364.56610476,0.0002958,2]
[398398582,1765605031943,-2000.0,0.00029588,3]
[398398583,1765605031952,-237.779,0.00029589,23]
[398398584,1765605031961,-500.0,0.00029589,2]
[398398585,1765605031970,-500.0,0.00029589,2]
[398398586,1765605031979,-550.0,0.00029589,5]
[398398587,1765605031988,-179.70265102,0.00029589,23]
[398398588,1765605031998,-153.0,0.00029589,30]
[398398589,1765605032007,-153.0,0.00029589,30]
[398398590,1765605032016,-153.0,0.00029589,30]
[398398591,1765605032025,-500.0,0.00029589,2]
[398398592,1765605032035,-500.0,0.00029589,2]
[398398593,1765605032045,-286.55915861,0.00029589,2]
[398398594,1765605032054,-81018.10852471,0.0002959,2]
[398398595,1765605032068,-1123.02642622,0.0002959,2]
[398398622,1765605037678,-2500.0,0.0002959,2]
[398398625,1765605037689,-31494.76452898,0.0002959,2]
[398398627,1765605037701,-3434.98,0.0002959,2]
[398398632,1765605037735,-96004.74533201,0.0002959,2]
[398398634,1765605037746,-579.00333235,0.0002959,2]
[398398636,1765605037757,-826.08819371,0.0002959,2]
[398398734,1765605045716,-765.71456297,0.0002958,10]
[398398738,1765605987979,191.69027777,0.00012563,2]
[398398739,1765605999124,-313.72046547,0.00023119,2]
[398398740,1765606025281,-30.1594069,0.00023119,2]
[398398741,1765606025304,-191.69027777,0.0002319,2]
[398398742,1765606025324,-59.6236174,0.00023253,2]
[398398743,1765606038089,-147.32732929,0.00023253,2]
[398398744,1765606038109,-434.300989,0.00023353,2]
[398398745,1765606038129,-629.97569038,0.00023353,2]
[398398787,1765606231718,-785.0,0.00023353,2]
[398398789,1765606231728,-150.0,0.00024279,2]
[398398790,1765606231738,-150.0,0.00027397,5]
[398398792,1765606231747,-300.0,0.00027865,2]
[398398794,1765606231756,-136.22208357,0.00027865,2]
[398398797,1765606231777,-1063.77791643,0.00027865,2]
[398398798,1765606231787,-1000.0,0.00027866,30]
[398398799,1765606231796,-7714.27103469,0.00027866,30]
[398398805,1765606231839,-334.00671502,0.00027866,30]
[398398947,1765606237916,-415.0,0.00026309,2]
[398398949,1765606237926,-535.72225029,0.00027866,30]
[398398950,1765606237936,-250.0,0.00027945,5]
[398398951,1765606237946,-500.0,0.00028346,14]
[398398952,1765606237955,-350.0,0.00028493,5]
[398398953,1765606237965,-450.0,0.00029041,5]
[398398954,1765606237974,-500.0,0.00029168,14]
[398398955,1765606237984,-401.0,0.00029472,2]
[398398956,1765606237993,-639.71,0.0002948,10]
[398398957,1765606238002,-661.04,0.0002948,10]
[398398958,1765606238012,-3786.87788172,0.0002948,2]
[398398959,1765606238021,-55293.33309675,0.0002949,2]
[398398960,1765606238032,-3811.66792024,0.0002949,2]
[398398961,1765606238044,-27128.20096962,0.0002949,2]
[398398962,1765606238056,-10351.22822179,0.0002949,2]
[398398963,1765606238067,-861.4296,0.0002949,2]
[398398964,1765606238078,-3592.74282916,0.0002949,2]
[398398965,1765606238090,-2196.29875058,0.0002949,2]
[398399346,1765607227121,-160.0,0.00020055,3]
[398399347,1765607227141,-224.33100379,0.00023175,2]
[398399348,1765607229126,-61.08809782,0.00023175,2]
[398399349,1765607229147,-155.78893977,0.00027757,2]
[398399350,1765607232081,-169.26676953,0.00027757,2]
[398399351,1765607232102,-480.0,0.00027881,2]
[398399352,1765607232120,-207.3254699,0.00027882,2]
[398399353,1765607251089,-984.56351414,0.00027882,2]
[398399360,1765607300383,199.58139839,9.277e-05,2]
[398399361,1765607300408,90.30995985,9.277e-05,2]
[398399536,1765607440267,-304.46572326,0.00021,2]
[398399537,1765607440277,-740.0,0.00021,2]
[398399538,1765607440286,-150.0,0.00021205,2]
[398399539,1765607440295,-289.89135824,0.0002141,2]
[398399540,1765607440305,-226.21545747,0.00023205,2]
[398399541,1765607440315,-150.0,0.00027397,5]
[398399542,1765607440324,-4608.07101596,0.00027882,2]
[398399543,1765607440334,-250.0,0.00027945,5]
[398399544,1765607440344,-500.0,0.00028346,14]
[398399545,1765607440353,-350.0,0.00028493,5]
[398399546,1765607440362,-306.0,0.00028767,30]
[398399547,1765607440373,-1919.24527363,0.00028839,2]
[398399548,1765607440383,-1592.0,0.00029,2]
[398399549,1765607440393,-450.0,0.00029041,5]
[398399550,1765607440402,-653.35631348,0.00029068,5]
[398399551,1765607440411,-338.91959305,0.00029068,5]
[398399552,1765607440421,-2000.0,0.00029167,3]
[398399553,1765607440431,-500.0,0.00029168,14]
[398399554,1765607440440,-1919.24527363,0.00029313,2]
[398399555,1765607440449,-284.48,0.0002932,22]
[398399556,1765607440459,-2773.56790519,0.00029372,2]
[398399557,1765607440469,-401.0,0.00029372,2]
[398399558,1765607440479,-550.86,0.0002938,10]
[398399559,1765607440489,-459.05,0.0002938,10]
[398399560,1765607440499,-315.57315681,0.0002938,2]
[398399561,1765607440508,-19277.73137013,0.0002939,2]
[398399562,1765607440519,-909.3791662,0.0002939,2]
[398399570,1765607446098,-1600.18163883,0.0002939,2]
[398399575,1765607447241,165.01015446,9.277e-05,2]
[398399580,1765607635285,488.311779,0.00013699,2]
[398399588,1765607740523,200.0,0.00018,2]
[398399589,1765607740925,1215.58,0.00018,2]
[398399591,1765607792703,500.0,0.00018,10]
[398399592,1765607800922,200.0,0.00018,2]
[398399593,1765607800952,507.79,0.00018,2]
[398399594,1765607805277,500.0,0.00018,10]
[398399595,1765607860766,200.0,0.00018,2]
[398399616,1765608484073,-280.43243137,0.00020187,2]
[398399652,1765608529024,150.0,6.831e-05,2]
[398399653,1765608529415,150.0,7.156e-05,2]
[398399693,1765608632232,-334.45923056,0.00020187,2]
[398399694,1765608632243,-390.54076944,0.00020187,2]
[398399695,1765608632253,-488.311779,0.00020187,2]
[398399696,1765608632262,-191.97550518,0.00023102,2]
[398399697,1765608632271,-488.311779,0.00026676,2]
[398399698,1765608632280,-495.85077362,0.00026696,2]
[398399699,1765608632289,-891.63886112,0.00026696,2]
[398399700,1765608632298,-257.21576258,0.00026696,2]
[398399701,1765608632308,-462.52538427,0.00026696,2]
[398399702,1765608632316,-174.0,0.000269,20]
[398399703,1765608632326,-1000.0,0.00027014,30]
[398399704,1765608632335,-291.88555486,0.00027397,5]
[398399705,1765608632344,-500.0,0.00028346,14]
[398399706,1765608632354,-397.0095852,0.00028767,30]
[398399707,1765608632363,-500.0,0.00029168,14]
[398399708,1765608632373,-882.5631658,0.00029253,2]
[398399709,1765608632382,-227.584,0.00029253,22]
[398399710,1765608632392,-401.0,0.00029273,2]
[398399711,1765608632402,-2813.64,0.0002928,10]
[398399712,1765608632411,-500.0,0.00029289,30]
[398399713,1765608632420,-500.0,0.00029289,31]
[398399714,1765608632430,-500.0,0.00029289,32]
[398399715,1765608632439,-500.0,0.00029289,33]
[398399716,1765608632448,-500.0,0.00029289,34]
[398399717,1765608632457,-500.0,0.00029289,35]
[398399718,1765608632467,-500.0,0.00029289,36]
[398399719,1765608632651,-500.0,0.00029289,37]
[398399720,1765608632661,-500.0,0.00029289,38]
[398399721,1765608632670,-500.0,0.00029289,39]
[398399722,1765608632680,-500.0,0.00029289,40]
[398399723,1765608632689,-500.0,0.00029289,41]
[398399724,1765608632699,-38201.63905733,0.0002929,2]
[398399725,1765608632711,-143504.30049309,0.0002929,2]
[398399726,1765608632721,-92222.50480687,0.0002929,2]
[398399727,1765608632732,-828.13943684,0.0002929,2]
[398399734,1765608638217,-11676.91243279,0.0002929,2]
[398399742,1765608638296,-24511.29784439,0.0002929,2]
[398399745,1765608638313,-2529.46607915,0.0002929,2]
[398399748,1765608638331,-4295.00459402,0.0002929,2]
[398399751,1765608638347,-3665.11543935,0.0002929,2]
[398399754,1765608638364,-1024.6242914,0.0002929,2]
[398399756,1765608638380,-1117.63657693,0.0002929,2]
[398399758,1765608638396,-1900.13446402,0.0002929,2]
[398399759,1765608638412,-968.75395028,0.0002929,2]
[398399761,1765608640449,-2502.35060588,0.0002929,2]
[398399762,1765608640466,-454.58,0.0002929,2]
[398399763,1765608640484,-2609.09178358,0.0002929,2]
[398399764,1765608640552,-4606.55837794,0.0002929,2]
[398399769,1765608644768,237.28005634,9.277e-05,2]
[398399770,1765608646306,-1075.6164,0.0002928,10]
[398399771,1765608646394,-1075.6164,0.0002928,10]
[398399805,1765608803514,230.80828865,9.277e-05,2]
[398399806,1765609606119,-313.72046547,0.00021265,2]
[398399807,1765609649095,-299.35569176,0.00021373,2]
[398399808,1765609649117,-230.80828865,0.0002148,2]
[398399809,1765609649137,-658.7359788,0.0002148,2]
[398399810,1765609650112,-90.2640212,0.0002148,2]
[398399811,1765609650132,-184.74965442,0.00023065,2]
[398399822,1765609832544,-231.50071352,0.00021395,2]
[398399823,1765609832554,-747.0,0.00021395,2]
[398399824,1765609832564,-597.0,0.00022,2]
[398399825,1765609832574,-597.0,0.00022192,7]
[398399826,1765609832584,-597.0,0.00022466,7]
[398399827,1765609832594,-597.0,0.0002274,7]
[398399828,1765609832603,-206.95094669,0.00022965,2]
[398399829,1765609832613,-597.0,0.00023014,7]
[398399830,1765609832622,-597.0,0.00023014,7]
[398399831,1765609832632,-6.94090857,0.00023065,2]
[398399832,1765609832641,-599.0,0.00024164,7]
[398399833,1765609832651,-597.0,0.00024164,7]
[398399834,1765609832660,-597.0,0.00025131,7]
[398399835,1765609832669,-1200.0,0.00025314,2]
[398399836,1765609832679,-597.0,0.00025315,7]
[398399837,1765609832688,-597.0,0.00026098,7]
[398399838,1765609832698,-597.0,0.00026466,7]
[398399839,1765609832707,-205.0,0.00026847,2]
[398399840,1765609832716,-300.0,0.00026848,2]
[398399841,1765609832726,-300.0,0.00026848,2]
[398399842,1765609832735,-597.0,0.00027064,7]
[398399843,1765609832745,-597.0,0.00027616,14]
[398399844,1765609832755,-597.0,0.00028031,14]
[398399845,1765609832764,-500.0,0.00028346,14]
[398399846,1765609832774,-500.0,0.00028914,2]
[398399847,1765609832783,-500.0,0.00028914,2]
[398399848,1765609832792,-597.0,0.00028997,14]
[398399849,1765609832802,-500.0,0.00029051,2]
[398399850,1765609832811,-500.0,0.00029051,2]
[398399851,1765609832820,-1645.03135895,0.00029086,2]
[398399852,1765609832829,-99257.7495866,0.0002909,2]
[398399853,1765609832841,-79230.05070626,0.0002909,2]
[398399854,1765609832852,-53204.8138952,0.0002909,2]
[398399855,1765609832863,-645.39516368,0.0002909,2]
[398399863,1765609838444,-2000.0,0.0002909,2]
[398399864,1765609838483,-80260.71439664,0.0002909,2]
[398399865,1765609838495,-17246.27715036,0.0002909,2]
[398399866,1765609838507,-56903.97589121,0.0002909,2]
[398399867,1765609838519,-23241.93743262,0.0002909,2]
[398399868,1765609838531,-32987.89925653,0.0002909,2]
[398399869,1765609838543,-19227.72316444,0.0002909,2]
[398399870,1765609838554,-16861.96021824,0.0002909,2]
[398399871,1765609838565,-1142.13736508,0.0002909,2]
[398399872,1765609838578,-1567.3008456,0.0002909,2]
[398399873,1765609838590,-617.98410226,0.0002909,2]
[398399874,1765609838602,-1373.14626632,0.0002909,2]
[398399875,1765609838613,-3335.44602688,0.0002909,2]
[398399876,1765609838625,-343.48819371,0.0002909,2]
[398399879,1765609840657,-420.0,0.00021,15]
[398399880,1765609840669,-364.80523342,0.00021,15]
[398399881,1765609840689,-601.7533848,0.00021,15]
[398399888,1765609843643,-682.6623395,0.00021,15]
[398399889,1765609843652,-206.43389715,0.0002909,2]
[398399890,1765609843664,-17194.30524317,0.0002909,2]
[398399904,1765609846540,-40063.90011786,0.0002909,2]
[398399912,1765610418200,415.065012,0.00013699,2]
[398399915,1765610831112,-415.065012,0.00020187,2]
[398399916,1765610831133,-285.32537308,0.00023008,2]
[398399917,1765610831153,-156.20185435,0.00025,5]
[398399918,1765610837074,-343.79814565,0.00025,5]
[398399919,1765610837093,-40.53285814,0.00026676,2]
[398399920,1765610845083,-160.0,0.00020356,3]
[398399921,1765610845105,-374.53215386,0.00026676,2]
[398399922,1765610845125,-470.46500479,0.00028346,14]
[398399924,1765610848124,-29.53499521,0.00028346,14]
[398399925,1765610848146,-193.15570618,0.00028897,2]
[398399975,1765611031634,-612.65091569,0.00020999,3]
[398399977,1765611031646,-374.4572225,0.00020999,3]
[398399979,1765611031657,-1012.89186181,0.00020999,3]
[398399981,1765611031666,-2000.0,0.00024999,3]
[398399983,1765611031675,-1200.0,0.00027062,2]
[398399985,1765611031686,-2000.0,0.00027063,3]
[398399987,1765611031695,-500.0,0.00028346,14]
[398399988,1765611031704,-500.0,0.00028811,2]
[398399990,1765611031714,-500.0,0.00028811,2]
[398399991,1765611031723,-2124.08,0.0002888,10]
[398399992,1765611031732,-6119.62367382,0.0002889,4]
[398399993,1765611031744,-610.94909855,0.0002889,4]
[398399994,1765611031756,-42952.34623189,0.0002889,4]
[398399995,1765611037609,-500.0,0.00028889,2]
[398399996,1765611037619,-173.35,0.00028889,2]
[398399997,1765611037631,-326.65,0.00028889,2]
[398399998,1765611037641,-500.0,0.00028889,2]
[398399999,1765611037650,-500.0,0.00028889,2]
[398400000,1765611037660,-500.0,0.00028889,2]
[398400001,1765611037669,-500.0,0.00028889,2]
[398400002,1765611037678,-500.0,0.00028889,2]
[398400003,1765611037687,-500.0,0.00028889,2]
[398400004,1765611037697,-500.0,0.00028889,2]
[398400005,1765611037706,-321.44067191,0.00028889,2]
[398400006,1765611037717,-178.55932809,0.00028889,2]
[398400007,1765611037726,-500.0,0.00028889,2]
[398400008,1765611037735,-185.38067191,0.00028889,2]
[398400009,1765611037746,-314.61932809,0.00028889,2]
[398400010,1765611037756,-500.0,0.00028889,2]
[398400011,1765611037765,-283.99529906,0.00028889,2]
[398400012,1765611037775,-500.0,0.00028889,2]
[398400013,1765611037784,-500.0,0.00028889,2]
[398400014,1765611037793,-263.30715264,0.00028889,2]
[398400015,1765611037803,-500.0,0.00028889,2]
[398400016,1765611037812,-500.0,0.00028889,2]
[398400017,1765611037821,-500.0,0.00028889,2]
[398400018,1765611037831,-500.0,0.00028889,2]
[398400019,1765611037840,-50.1170068,0.00028889,2]
[398400020,1765611037851,-449.8829932,0.00028889,2]
[398400021,1765611037861,-500.0,0.00028889,2]
[398400022,1765611037870,-500.0,0.00028889,2]
[398400023,1765611037880,-500.0,0.00028889,2]
[398400024,1765611037890,-500.0,0.00028889,2]
[398400025,1765611037899,-500.0,0.00028889,2]
[398400026,1765611037908,-500.0,0.00028889,2]
[398400027,1765611037918,-500.0,0.00028889,2]
[398400028,1765611037927,-602.99930831,0.00028889,2]
[398400029,1765611037936,-117.77628699,0.00028889,2]
[398400033,1765611040412,-382.22371301,0.00028889,2]
[398400034,1765611040423,-500.0,0.00028889,2]
[398400035,1765611040433,-500.0,0.00028889,2]
[398400036,1765611040443,-500.0,0.00028889,2]
[398400037,1765611040452,-263.85250475,0.00028889,2]
[398400038,1765611040461,-500.0,0.00028889,2]
[398400039,1765611040471,-500.0,0.00028889,2]
[398400040,1765611040480,-433.92378224,0.00028889,2]
[398400041,1765611040491,-66.07621776,0.00028889,2]
[398400042,1765611040500,-500.0,0.00028889,2]
[398400043,1765611040509,-500.0,0.00028889,2]
[398400044,1765611040518,-500.0,0.00028889,2]
[398400045,1765611040528,-500.0,0.00028889,2]
[398400046,1765611040537,-500.0,0.00028889,2]
[398400047,1765611040546,-1433.92243724,0.0002889,4]
[398400059,1765611042954,-1439.40243909,0.00028796,2]
[398400060,1765611042964,-61304.80338212,0.0002889,4]
[398400067,1765611149294,150.0,6.861e-05,2]
[398400083,1765611675457,500.0,0.00018,2]
[398400084,1765611694363,819.46,0.00018,2]
[398400142,1765612232045,-384.52705645,0.00025,2]
[398400143,1765612232056,-819.0,0.00025,2]
[398400144,1765612232065,-2000.0,0.00027062,3]
[398400145,1765612232075,-1200.0,0.00027441,2]
[398400146,1765612232084,-1000.0,0.00027442,30]
[398400147,1765612232094,-1191.8889841,0.00027553,2]
[398400148,1765612232104,-292.0,0.00028343,2]
[398400149,1765612232113,-300.0,0.00028343,2]
[398400150,1765612232123,-2000.0,0.00028345,3]
[398400151,1765612232133,-500.0,0.00028346,14]
[398400152,1765612232143,-3335.8725458,0.00028667,2]
[398400153,1765612232153,-1259.47713416,0.00028667,2]
[398400154,1765612232162,-2400.38,0.000287,10]
[398400155,1765612232172,-11381.19218094,0.0002871,4]
[398400156,1765612232183,-768.41661478,0.0002871,4]
[398400157,1765612232195,-405.24391306,0.0002871,4]
[398400158,1765612232206,-4688.45,0.0002871,4]
[398400161,1765612237973,-500.0,0.00028709,2]
[398400162,1765612237983,-622.5554787,0.00028709,2]
[398400163,1765612237992,-500.0,0.00028709,2]
[398400164,1765612238001,-251.5391672,0.00028709,2]
[398400165,1765612238011,-66.9053541,0.0002871,4]
[398400166,1765612238022,-5532.61197048,0.0002871,4]
[398400360,1765612240141,-19470.50213203,0.0002871,4]
[398400362,1765612240153,-3435.90441041,0.0002871,4]
[398400369,1765612240287,-104024.01664301,0.0002871,4]
[398400443,1765612243047,-388.3,0.000287,10]
[398400444,1765612243059,-844.72804851,0.000287,10]
[398400445,1765612243079,-767.29195149,0.000287,10]
[398400446,1765612243089,-6003.2929623,0.0002871,4]
[398400447,1765612243100,-371832.202933,0.0002871,4]
[398400448,1765612243111,-36877.65640394,0.0002871,4]
[398400473,1765612246296,-678.92998736,0.0002871,4]
[398400515,1765613005367,352.80526,0.00013699,2]
[398400517,1765613208133,-313.72046547,0.00019986,2]
[398400518,1765613227122,-30.1594069,0.00019986,2]
[398400519,1765613227144,-239.6219713,0.00020087,2]
[398400520,1765613253093,-59.73372046,0.00020087,2]
[398400521,1765613253112,-352.80526,0.00020187,2]
[398400522,1765613253132,-184.85023013,0.00022538,2]
[398400523,1765613253151,-500.0,0.00025,5]
[398400524,1765613253169,-73.12046856,0.00025205,2]
[398400542,1765613431998,-230.80898108,0.0002073,2]
[398400543,1765613432008,-91.19101892,0.0002073,2]
[398400544,1765613432019,-643.80898108,0.0002073,2]
[398400546,1765613432028,-500.0,0.00025,5]
[398400548,1765613432038,-361.18052044,0.00025205,2]
[398400550,1765613432047,-352.80526,0.00026676,2]
[398400551,1765613432057,-325.0557093,0.00027756,2]
[398400552,1765613432066,-1200.0,0.00027943,2]
[398400553,1765613432075,-300.0,0.00027944,2]
[398400554,1765613432084,-300.0,0.00027944,2]
[398400555,1765613432094,-300.0,0.00027944,2]
[398400557,1765613432103,-300.0,0.00027944,2]
[398400559,1765613432113,-153.0,0.00027945,30]
[398400561,1765613432122,-153.0,0.00027945,30]
[398400562,1765613432131,-153.0,0.00027945,30]
[398400563,1765613432141,-153.0,0.00027945,30]
[398400564,1765613432150,-153.0,0.00027945,30]
[398400565,1765613432159,-153.0,0.00027945,30]
[398400566,1765613432168,-153.0,0.00027978,30]
[398400567,1765613432178,-401.0,0.00027981,2]
[398400568,1765613432187,-399.0,0.00027981,2]
[398400569,1765613432196,-2773.56790519,0.00027981,2]
[398400570,1765613432206,-1200.0,0.00027985,2]
[398400571,1765613432215,-1389.11,0.00027988,10]
[398400572,1765613432224,-500.0,0.00027997,3]
[398400573,1765613432235,-500.0,0.00027997,3]
[398400574,1765613432244,-534.11,0.00027997,3]
[398400575,1765613432253,-2844.87,0.00027997,3]
[398400576,1765613432266,-1339.24,0.00027997,3]
[398400577,1765613432276,-826.96,0.00027997,3]
[398400578,1765613432285,-500.0,0.00027997,3]
[398400579,1765613432295,-500.0,0.00027997,3]
[398400580,1765613432304,-877.24,0.00027997,3]
[398400581,1765613432313,-500.0,0.00027997,3]
[398400582,1765613432323,-500.0,0.00027997,3]
[398400583,1765613432332,-500.0,0.00027997,3]
[398400584,1765613432341,-2611.66,0.00027997,3]
[398400585,1765613432351,-500.0,0.00027997,3]
[398400586,1765613432360,-1334.05,0.00027997,3]
[398400587,1765613432370,-2613.08,0.00027997,3]
[398400588,1765613432379,-500.0,0.00027997,3]
[398400589,1765613432389,-500.0,0.00027997,3]
[398400590,1765613432398,-628.53,0.00027997,3]
[398400591,1765613432408,-2134.46,0.00027997,3]
[398400592,1765613432417,-1821.28,0.00027997,3]
[398400593,1765613432427,-500.0,0.00027997,3]
[398400594,1765613432436,-2697.12,0.00027997,3]
[398400595,1765613432446,-949.22,0.00027997,2]
[398400596,1765613432455,-2395.93,0.00027997,3]
[398400597,1765613432464,-825.81,0.00027997,3]
[398400598,1765613432474,-500.0,0.00027998,3]
[398400599,1765613432483,-500.0,0.00027998,3]
[398400600,1765613432492,-500.0,0.00027998,3]
[398400601,1765613432502,-500.0,0.00027998,3]
[398400602,1765613432511,-500.0,0.00027998,3]
[398400603,1765613432520,-500.0,0.00027998,3]
[398400604,1765613432529,-500.0,0.00027998,3]
[398400605,1765613432539,-500.0,0.00027998,3]
[398400606,1765613432548,-908.51,0.00027998,3]
[398400607,1765613432557,-500.0,0.00027998,3]
[398400608,1765613432567,-558.98,0.00027998,3]
[398400609,1765613432576,-500.0,0.00027998,3]
[398400610,1765613432587,-500.0,0.00027998,3]
[398400611,1765613432596,-553.48,0.00027998,3]
[398400612,1765613432606,-500.0,0.00027998,3]
[398400613,1765613432616,-819.4,0.00027998,3]
[398400614,1765613432625,-500.0,0.00027998,3]
[398400615,1765613432635,-500.0,0.00027998,3]
[398400616,1765613432644,-500.0,0.00027998,3]
[398400617,1765613432655,-1434.48,0.00027998,3]
[398400618,1765613432664,-500.0,0.00027998,3]
[398400619,1765613432673,-500.0,0.00027998,3]
[398400620,1765613432683,-500.0,0.00027998,3]
[398400621,1765613432692,-568.34,0.00027998,3]
[398400622,1765613432701,-500.0,0.00027998,3]
[398400623,1765613432710,-629.47,0.00027998,3]
[398400624,1765613432720,-978.14,0.00027998,3]
[398400625,1765613432729,-500.0,0.00027998,3]
[398400626,1765613432742,-500.0,0.00027998,3]
[398400627,1765613432751,-500.0,0.00027998,3]
[398400628,1765613432761,-902.47,0.00027998,3]
[398400629,1765613432770,-500.0,0.00027998,3]
[398400630,1765613432779,-500.0,0.00027998,3]
[398400631,1765613432788,-500.0,0.00027998,3]
[398400632,1765613432798,-981.1,0.00027998,3]
[398400633,1765613432807,-500.0,0.00027998,3]
[398400634,1765613432817,-500.0,0.00027998,3]
[398400635,1765613432826,-500.0,0.00027998,3]
[398400636,1765613432835,-500.0,0.00027998,3]
[398400637,1765613432845,-500.0,0.00027998,3]
[398400638,1765613432854,-500.0,0.00027998,3]
[398400639,1765613432863,-500.0,0.00027998,3]
[398400640,1765613432873,-500.0,0.00027998,3]
[398400641,1765613432882,-500.0,0.00027998,3]
[398400642,1765613432892,-500.0,0.00027998,3]
[398400643,1765613432902,-500.0,0.00027998,3]
[398400644,1765613432912,-515.47,0.00027998,3]
[398400645,1765613432921,-500.0,0.00027998,3]
[398400646,1765613432931,-500.0,0.00027998,3]
[398400647,1765613432940,-500.0,0.00027998,3]
[398400648,1765613432949,-500.0,0.00027998,3]
[398400649,1765613432958,-500.0,0.00027998,3]
[398400650,1765613432967,-1265.73,0.00027998,3]
[398400651,1765613432977,-896.06,0.00027998,3]
[398400652,1765613432987,-500.0,0.00027998,3]
[398400653,1765613432998,-571.67,0.00027998,3]
[398400654,1765613433007,-500.0,0.00027998,3]
[398400655,1765613433017,-500.0,0.00027998,3]
[398400656,1765613433027,-500.0,0.00027998,3]
[398400657,1765613433036,-500.0,0.00027998,3]
[398400658,1765613433046,-570.18,0.00027998,3]
[398400659,1765613433056,-500.0,0.00027998,3]
[398400660,1765613433066,-500.0,0.00027998,3]
[398400661,1765613433076,-500.0,0.00027998,3]
[398400662,1765613433087,-500.0,0.00027998,3]
[398400663,1765613433096,-500.0,0.00027998,3]
[398400664,1765613433106,-500.0,0.00027998,2]
[398400665,1765613433116,-2919.87,0.00027998,3]
[398400666,1765613433126,-500.0,0.00027998,3]
[398400667,1765613433136,-678.18,0.00027998,3]
[398400668,1765613433146,-1430.74,0.00027998,3]
[398400669,1765613433156,-500.0,0.00027998,3]
[398400670,1765613433166,-1666.71,0.00027998,3]
[398400671,1765613433176,-500.0,0.00027998,3]
[398400672,1765613433186,-500.0,0.00027998,3]
[398400673,1765613433197,-2455.26,0.00027998,3]
[398400674,1765613433207,-1781.09,0.00027998,3]
[398400675,1765613433223,-500.0,0.00027998,3]
[398400676,1765613433240,-500.0,0.00027998,3]
[398400677,1765613433254,-888.46,0.00027998,3]
[398400678,1765613433263,-500.0,0.00027998,3]
[398400679,1765613433273,-500.0,0.00027998,3]
[398400680,1765613433283,-500.0,0.00027998,3]
[398400681,1765613433293,-773.6,0.00027998,3]
[398400682,1765613433302,-710.81,0.00027998,3]
[398400683,1765613433312,-500.0,0.00027998,3]
[398400684,1765613433321,-500.0,0.00027998,3]
[398400685,1765613433331,-500.0,0.00027998,3]
[398400686,1765613433340,-500.0,0.00027998,3]
[398400687,1765613433349,-500.0,0.00027998,3]
[398400688,1765613433359,-2782.91,0.00027998,3]
[398400689,1765613433368,-500.0,0.00027998,3]
[398400690,1765613433378,-500.0,0.00027998,3]
[398400691,1765613433387,-2769.35,0.00027998,3]
[398400692,1765613433396,-500.0,0.00027998,3]
[398400693,1765613433406,-500.0,0.00027998,3]
[398400694,1765613433416,-500.0,0.00027998,3]
[398400695,1765613433425,-500.0,0.00027998,3]
[398400696,1765613433435,-500.0,0.00027998,3]
[398400697,1765613433444,-500.0,0.00027998,3]
[398400698,1765613433454,-500.0,0.00027998,3]
[398400699,1765613433463,-500.0,0.00027998,3]